Cogmind - Beta 14 --- EXPLORER MODE // 2024.10.18 @ 18:54:19 Player: Glitch Artist Result: Self-destructed Performance ------------- Evolutions (1) 500 Regions Visited (2) 400 Robots Destroyed (20) 100 Value Destroyed (477) 477 Prototype IDs (2) 40 Alien Tech Used (0) 0 Bonus (0) 0 TOTAL SCORE: 1517 Bonus ------- None Cogmind --------- Core Integrity 289/400 Matter 484/500 Energy 250/250 System Corruption 0% Temperature Cool (0) Movement Treading (240) Ox1 Location -9/Materials Parts ------- > --- POWER (1) -------- Ion Engine > --- PROPULSION (4) --- Light Treads Light Treads Light Treads Light Treads > --- UTILITY (3) ------ Huge Storage Unit High-capacity Matter Pod Targeting Computer > --- WEAPON (2) ------- Heavy Assault Rifle Maul > --- INVENTORY (25) --- Ion Engine Flight Unit Flight Unit Visual Processing Unit Light Armor Plating Field Recycling Unit (0) Peak State ------------ > --- POWER ------------ Ion Engine > --- PROPULSION ------- Light Treads Light Treads Light Treads Light Treads > --- UTILITY ---------- Huge Storage Unit High-capacity Matter Pod Targeting Computer > --- WEAPON ----------- Heavy Assault Rifle Maul > --- INVENTORY -------- Ion Engine Flight Unit Flight Unit Visual Processing Unit Light Armor Plating Field Recycling Unit [Rating: 12] Favorites ----------- Power Ion Engine Engine Ion Engine Propulsion Light Treads Treads Light Treads Wheel Wheel Utility Huge Storage Unit Storage Huge Storage Unit Processor Targeting Computer Protection Light Armor Plating Weapon Assault Rifle Energy Gun EM Pulse Gun Ballistic Gun Assault Rifle Impact Weapon Maul Build | -11 -10 -9 ------- Run | Yrd Mat Mat Slots Evolved 3 | . 1 2 Power . | . . . Propulsion 2 | . . 2 Utility 1 | . 1 . Weapon . | . . . Parts Attached 20 | 9 4 7 Power 1 | 1 . . Engine 1 | 1 . . Core . | . . . Reactor . | . . . Propulsion 8 | 4 . 4 Treads 6 | 2 . 4 Leg . | . . . Wheel 2 | 2 . . Hover . | . . . Flight . | . . . Utility 6 | 2 3 1 Device . | . . . Storage 3 | 1 2 . Processor 1 | . . 1 Hackware . | . . . Protection 2 | 1 1 . Artifact . | . . . Weapon 5 | 2 1 2 Energy Gun 1 | 1 . . Energy Cannon . | . . . Ballistic Gun 3 | 1 1 1 Ballistic Cannon . | . . . Launcher . | . . . Special Weapon . | . . . Impact Weapon 1 | . . 1 Slashing Weapon . | . . . Piercing Weapon . | . . . Special Melee Weapon . | . . . Unidentified Prototypes . | . . . Parts Lost 5 | . . 5 Power . | . . . Propulsion 2 | . . 2 Utility 1 | . . 1 Weapon 2 | . . 2 Highest Loss Streak 3 | . . 3 To Critical Strikes . | . . . Average Slot Usage (%) 85 | . 96 82 Engine 10 | . 12 10 Treads 10 | . . 13 Wheel 12 | . 25 9 Storage 20 | . 21 20 Processor 1 | . . 2 Protection 8 | . 11 7 Energy Gun 9 | . 12 8 Ballistic Gun 10 | . 11 10 Impact Weapon 1 | . . 1 Peak Build Rating 12 | 7 8 12 Average Rating 8 | 5 7 8 On Entrance 5 | . 7 8 Naked Turns . | . . . Heaviest Build 96 | 22 96 96 Greatest Support 80 | 40 26 80 Greatest Overweight (x) 9 | 5 3 9 Average Overweight (x) 5 | . 1 7 Largest Inventory Capacity 25 | 10 25 25 Average Capacity 23 | 9 21 25 Most Carried 9 | 3 6 9 Average Carried 5 | . 3 7 Final Capacity 25 | 10 25 25 Final Carried 6 | 2 4 6 Class Distribution -------------------- 100% | Hacker-Mutant Dominant Class ---------------- Hacker-Mutant | -10/Materials Hacker-Mutant | -9/Materials Resources | -11 -10 -9 ----------- Run | Yrd Mat Mat Matter Collected 766 | 305 171 290 Remotely . | . . . Salvage Created 830 | 135 171 524 Parts 53 | 8 6 39 Haulers Intercepted . | . . . Recyclers Shooed 2 | 1 1 . Parts Field Recycled . | . . . Retrieved Matter . | . . . Parts Self-Destructed . | . . . Prevented . | . . . Kills | -11 -10 -9 ------- Run | Yrd Mat Mat Combat Hostiles Destroyed 11 | . 2 9 Guns 11 | . 2 9 Classes Destroyed 7 | 2 1 4 Tunneler 2 | 2 . . Recycler 3 | 1 2 . Watcher 4 | . . 4 Swarmer 2 | . 2 . Grunt 5 | . . 5 Brawler 1 | . . 1 Sentry 3 | . . 3 Best Kill Streak 4 | 3 4 4 Combat Bots Only 3 | . 2 3 Max Kills in Single Turn 1 | 1 1 1 Gunslinging . | . . . Exploded . | . . . Melee . | . . . Uniques/NPCs Destroyed . | . . . Combat | -11 -10 -9 -------- Run | Yrd Mat Mat Hostile Shots Fired 135 | . 6 129 Missed 41 | . . 41 Damage Taken 861 | . 36 825 Core 119 | . 8 111 Absorbed by Shields . | . . . Ignored by Resistances 534 | . 27 507 Core Remaining (%) 98 | 100 96 . Volleys Fired 66 | 5 9 52 Largest 2 | 2 2 2 Hottest 60 | 60 60 60 Shots Fired 113 | 10 18 85 Gun 113 | 10 18 85 Cannon . | . . . Launcher . | . . . Special . | . . . Kinetic 66 | 5 9 52 Thermal . | . . . Explosive . | . . . Electromagnetic 47 | 5 9 33 Robot Hit Streak 26 | 9 5 26 Robot Miss Streak 2 | . 2 1 Penetration Max . | . . . Secondary Targets 2 | . 1 1 Max Gunslinging Chain 1 | . 1 1 Shots Hit Robots 96 | 9 13 74 Core Hits 32 | 3 6 23 Critical Kills . | . . . Critical Parts Destroyed . | . . . Critical Strikes 1 | . . 1 Corrupt 1 | . . 1 Melee Attacks . | . . . Impact . | . . . Slashing . | . . . Piercing . | . . . Sneak Attacks . | . . . Combat Hostiles . | . . . Follow-up Attacks . | . . . Damage Inflicted 1357 | 114 181 1062 Guns 1247 | 114 150 983 Cannons . | . . . Explosions 110 | . 31 79 Melee . | . . . Ramming . | . . . Kinetic 782 | 53 89 640 Thermal 110 | . 31 79 Explosive . | . . . Electromagnetic 465 | 61 61 343 Impact . | . . . Slashing . | . . . Piercing . | . . . Highest Corruption . | . . . Average Corruption . | . . . Corruption Purged . | . . . Corruption Blocked . | . . . Overload Shots . | . . . Overflow Damage . | . . . Projectiles . | . . . Explosions . | . . . Melee . | . . . Knockbacks . | . . . Impact . | . . . Kinetic . | . . . Secondary . | . . . Self-Inflicted Damage 43 | . . 43 Shots 2 | . . 2 Rammed . | . . . Targets Rammed . | . . . Kicked . | . . . Crushed . | . . . Highest Temperature 60 | 27 27 60 Average Temperature 24 | 11 11 34 Received Heat Transfer 480 | . . 480 Siege Activations . | . . . Robots Corrupted . | . . . Combat Hostiles . | . . . Parts Fried . | . . . Impact Corruptions . | . . . Robots Melted . | . . . Combat Hostiles . | . . . Parts Melted . | . . . Heat Transferred 200 | . 50 150 Parts Sabotaged . | . . . Parts Stolen . | . . . Parts Stripped . | . . . Power Chain Reactions 3 | . 1 2 Alert | -11 -10 -9 ------- Run | Yrd Mat Mat Peak Influence 125 | 15 110 125 Initial 33 | . 7 33 Average 55 | 4 69 56 Maximum Alert Level . | . . . Low Security (%) 100 | 100 100 100 Level 1 . | . . . Level 2 . | . . . Level 3 . | . . . Level 4 . | . . . Level 5 . | . . . High Security . | . . . Max Security . | . . . Squads Dispatched 2 | . . 2 Investigation 1 | . . 1 Extermination . | . . . Reinforcement 1 | . . 1 Assault . | . . . Garrison . | . . . Intercept . | . . . Searches Triggered . | . . . Construction Impeded . | . . . Haulers Reinforced . | . . . Active Scanning Responses . | . . . Cargo Convoy Interrupts . | . . . Stealth | -11 -10 -9 --------- Run | Yrd Mat Mat Distress Signals 2 | . . 2 Communications Jammed . | . . . Distress Signals . | . . . Times Spotted 29 | . 5 24 Peak Tracking Total 4 | . 3 4 Tactical Retreats 1 | . . 1 Traps | -11 -10 -9 ------- Run | Yrd Mat Mat Traps Triggered 5 | . 3 2 Indirectly . | . . . Trap Hack Attempts . | . . . Triggered . | . . . Disarmed . | . . . Reprogrammed . | . . . Reused . | . . . Traps Extracted . | . . . Installed . | . . . Triggered . | . . . Machines | -11 -10 -9 ---------- Run | Yrd Mat Mat Machines Disabled 2 | . 1 1 Max in Single Turn 1 | . 1 1 Machines Repaired . | . . . Machines Dismantled . | . . . Machines Sabotaged . | . . . Overloaded Fab Kills . | . . . Hacking | -11 -10 -9 --------- Run | Yrd Mat Mat Machines Accessed 8 | . 3 5 Terminals 5 | . 2 3 Fabricators . | . . . Repair Stations . | . . . Recycling Units 1 | . 1 . Scanalyzers 2 | . . 2 Garrison Access . | . . . Total Hacks 22 | . 9 13 Successful 13 | . 4 9 Failed 9 | . 5 4 Catastrophic 2 | . 1 1 Database Lockouts . | . . . Manual 2 | . 1 1 Terminals 15 | . 8 7 Fabricators . | . . . Repair Stations . | . . . Recycling Units 1 | . 1 . Scanalyzers 6 | . . 6 Garrison Access . | . . . Terminal Hacks 6 | . 3 3 Record 2 | . . 2 Prototype ID Bank 1 | . 1 . Hauler Manifests 1 | . 1 . Zone Layout 2 | . 1 1 Fabricator Hacks . | . . . Repair Station Hacks . | . . . Recycling Unit Hacks 1 | . 1 . Report Inventory 1 | . 1 . Scanalyzer 6 | . . 6 Insert Component 3 | . . 3 Analyze 3 | . . 3 Garrison Access Hacks . | . . . Unauthorized Hacks . | . . . Terminals . | . . . Fabricators . | . . . Repair Stations . | . . . Recycling Units . | . . . Scanalyzers . | . . . Garrison Access . | . . . Data Cores Recovered . | . . . Used . | . . . Hacking Detections 7 | . 2 5 Full Trace Events 2 | . . 2 Feedback Events . | . . . Feedback Blocked . | . . . Robot Schematics Acquired . | . . . Robots Built . | . . . Authchips . | . . . Time . | . . . Total Robot Build Rating . | . . . Part Schematics Acquired 3 | . . 3 Parts Built . | . . . Authchips . | . . . Time . | . . . Total Part Build Rating . | . . . Parts Repaired . | . . . Time . | . . . Parts Recycled . | . . . Recycled Matter . | . . . Retrieved Matter . | . . . Retrieved Components . | . . . Parts Scanalyzed 3 | . . 3 Part Schematics Acquired 3 | . . 3 Parts Damaged . | . . . Bothacking | -11 -10 -9 ------------ Run | Yrd Mat Mat Used RIF Installer . | . . . Robots Hacked . | . . . Non-combat . | . . . Combat . | . . . Robot Hacks Applied . | . . . Relay Couplers Released . | . . . Fabnet Peak Effective % . | . . . Robots Rewired . | . . . Allies Hacked . | . . . Hacks Repelled . | . . . Allies | -11 -10 -9 -------- Run | Yrd Mat Mat Total Allies . | . . . Largest Group . | . . . Highest-Rated Group . | . . . Highest-Rated Ally . | . . . Total Orders . | . . . Ally Attacks . | . . . Total Damage . | . . . Kills . | . . . Allies Corrupted . | . . . Allies Melted . | . . . Intel | -11 -10 -9 ------- Run | Yrd Mat Mat Robot Analysis Total . | . . . Derelict Logs Recovered . | . . . Drone Launches . | . . . Drone Recoveries . | . . . Exploration | -11 -10 -9 ------------- Run | Yrd Mat Mat Turns Passed 1519 | 114 339 1066 Spaces Moved 729 | 53 245 431 Core 8 | 8 . . Treads 95 | 41 . 54 Legs . | . . . Wheels 626 | 4 245 377 Hover . | . . . Flight . | . . . Fastest Speed 50 | 50 90 135 Average Speed 175 | 152 119 209 Slowest Speed 300 | 300 135 240 Overloaded Moves . | . . . Propulsion Burnouts . | . . . Robots Hopped . | . . . Cave-ins Triggered . | . . . Exploration Rate (%) 26 | 5 48 25 Regions Visited 2 Branch Regions . Pre-discovered Areas . | . . . Known Exits Taken 2 | 1 1 . Unknown Exits Taken . | . . . Scrap Searched . | . . . Spaces Dug . | . . . Terrain Destroyed 6 | . 2 4 Melee . | . . . Projectile . | . . . AOE 6 | . 2 4 Terrain Rammed . | . . . Walls Destroyed . | . . . Machines Disabled . | . . . Actions | -11 -10 -9 --------- Run | Yrd Mat Mat Total 855 | 75 272 508 Wait 17 | . 8 9 Move 727 | 52 244 431 Hop . | . . . Pick Up 24 | 9 6 9 Fast Attach . | . . . Attach 17 | 7 3 7 Detach . | . . . Swap 3 | 2 1 . Drop 1 | . 1 . Fire 66 | 5 9 52 Melee . | . . . Ram . | . . . Kick . | . . . Crush . | . . . Escape Stasis . | . . . Rewire . | . . . Trap . | . . . Miscellaneous . | . . . Route ------- -11/Scrapyard -10/Materials (discovered 2 exits: *Mat / *Min) -9/Materials History --------- Turn | Location | Event 21 | -11/Scrapyard | Identified exit to Materials 21 | -11/Scrapyard | Discovered exit to Materials (range 16) 115 | -11/Scrapyard | Entered Materials 115 | -10/Materials | Evolved 1 slot: Utility x1 313 | -10/Materials | Build established: Hacker-Mutant 347 | -10/Materials | Identified exit to Mines 347 | -10/Materials | Discovered exit to Mines (range 7) 419 | -10/Materials | Identified exit to Materials 419 | -10/Materials | Discovered exit to Materials (range 13) 454 | -10/Materials | Entered another Materials area 454 | -9/Materials | Evolved 2 slots: Propulsion x2 1395 | -9/Materials | Lost 3 parts (1n2w) 1520 | -9/Materials | Self-destructed Last Messages --------------- 01401_ K-01 Serf collects debris. 01401_ R-06 Scavenger collects Aluminum Leg. 01404_ K-01 Serf collects debris. 01409_ Y-45 Defender destroyed. 01413_ Acquired Lgt. Treads. 01414_ K-01 Serf collects debris. 01414_ R-06 Scavenger collects Lgt. Armor Plating. 01416_ Acquired 24 matter. 01420_ K-01 Serf collects debris. 01426_ R-06 Scavenger collects Heat Sink. 01429_ R-06 Scavenger collects Hvy. Assault Rifle. 01431_ K-01 Serf collects debris. 01456_ Connecting with Terminal... 01518_ G-34 Mercenary destroyed. 01519_ C-30 ARC bursts open, deploying its payload. 01519_ B-36 Bruiser unfolds itself. 01519_ G-34 Mercenary unfolds itself. Map ----- +----------------------------------------------------+ | ????????????????????????????????????????????????## | | ?????????????????????????????????????????????????# | | ?????????????????????????????????????????????????# | | ??????????????????????????????????????##########?# | | ??????????????????????????????????????# ### | | ??????????????????????????????????????# """" # | | ??????????????????????????????????????# """" # | | ??????????????????????????????????????# """" # | | ??????????????????????????????????????# + | | ??????????????????????????????????????# """" # | | ??????????????????????????????????????# """" # | | ??????????????????????????????????????# """" # | | ??????????????????????????###?????????# ## | | ????????????????????????### ##################### | | ????????????????????????# T ## [ # | | ????????????????????????# ## """"" + | | ????????????????????????# ## """"""""" # | | ????????????????????????# """ ## """ """ # | | ????????????????????????# """"" ## % # | | ????????????????????????# """"" ###+########### | | ?????????????????######## """" ### ########### | | ?????????????????+ +[% """ # | | ?????????????????# #gg # [% | | ?????????????????# ??#* "" + | | ?????????????????# ????#b """"" # | | ??????????????? +??????#@ """"" + | | ?????????????# ????????# """" #% ## ## | | ?????????????#??????????# """ # ## ## | | ????????????????????????# # ##!!//!!## | | ????????????????????????# #% ##!!//!!## | | ????????????????????????########### ########## | | ??????????????????????????????????# #????????# | | ??????????????????????????????????/ #????????# | | ????????????????????????????????? # ###????????# | | ????????????????????????????????? # #??????????# | | ???????????????????????????????? ?+ #?????????## | | ???????????????????????????????? ?#####???????###" | | ??????????????????????????????? ??????????????# % | | ??????????????????????????????????????????????# = | | ??????????????????????????????????????????????# | | ??????????????????????????????????????????????# | | | ??????????????????????????????????????????????# | | | ??????????????????????????????????????????????# | | ??????????????????????????????????????????????# | | ??????????????????????????????????????????????# | | ??????????????????????????????????????????????#### | | ?????????????????????????????????????????????????? | | ?????????????????????????????????????????????????? | | ?????????????????????????????????????????????????? | | ?????????????????????????????????????????????????? | +----------------------------------------------------+ Best States ------------- Heat Dissipation 28 Energy Generation 10 Energy Capacity 250 Matter Stores 500 Matter Capacity 500 Sight Range 16 Terrain Scan Density 10 Armor Coverage 150 Resistance: KI 35 Resistance: TH 35 Resistance: EX 35 Resistance: EM 35 Resistance: I 35 Resistance: S 35 Resistance: P 35 Evasion (%) 42 Targeting Accuracy 5 Recoil Reduction 4 Offensive Hacking 20 Item Schematics ----------------- Flight Unit | -9/Materials | Scanalyzed Field Recycling Unit | -9/Materials | Scanalyzed Visual Processing Unit | -9/Materials | Scanalyzed Robot Schematics ------------------ None Fabricated ------------ Nothing Alien Tech Used ----------------- None Achievements -------------- None Challenges ------------ None Game ------ Seed SensorHackingProcessor Manual? 0 Play Time 00:14:24 Cumulative 7.2 hours Start 2024.10.18 @ 18:41:57 End 2024.10.18 @ 18:54:19 Sessions 1 Manual Loads 0 Difficulty Explorer Special Mode None Game No. 13 Rogue 8 Adventurer 0 Explorer 5 Win Type - Total 0 Types 0/0/0/0/0/0/0/0/0 Lore% 2 Gallery% 15 Achievement% 17 Wizard Run 0 Options --------- Layout 1 ASCII 0 Keyboard 0 Movement Arrows Keybinds 0 Fullscreen 2 Font 24/X11 Map View 50x35 Zoom Use 0% Tactical HUD 1 Map Filters NONE Filters NONE Steam 1 RUN: 278e0dba-ebb7-462f-8818-66e8c5cd6242